[Event "Titled Tuesday Blitz June 28 Early 2022"]
[White "Nunez V, Gustavo Eduardo"]
[Black "Sahil, Tickoo"]
[WhiteFideId "4403690"]
[BlackFideId "5019710"]
[WhiteElo "2228"]
[BlackElo "2047"]
[Result "1-0"]
[Round "09"]
[TimeControl "180+1"]
[Date "2022.06.28"]
[WhiteClock "0:00:25"]
[BlackClock "0:00:21"]

1. e4 {[%clk 0:03:00]}  c5 {[%clk 0:02:59]} 2. Nc3 {[%clk 0:03:00]}  Nc6 {[%clk 0:02:58]} 3. g3 {[%clk 0:02:59]}  g6 {[%clk 0:02:55]} 4. Bg2 {[%clk 0:02:59]}  Bg7 {[%clk 0:02:46]} 5. d3 {[%clk 0:03:00]}  d6 {[%clk 0:02:46]} 6. Be3 {[%clk 0:03:00]}  e6 {[%clk 0:02:46]} 7. Qd2 {[%clk 0:02:58]}  Nge7 {[%clk 0:02:39]} 8. Nge2 {[%clk 0:02:57]}  O-O {[%clk 0:02:37]} 9. Bh6 {[%clk 0:02:56]}  Nd4 {[%clk 0:02:27]} 10. h4 {[%clk 0:02:55]}  f6 {[%clk 0:02:26]} 11. Bxg7 {[%clk 0:02:51]}  Kxg7 {[%clk 0:02:26]} 12. h5 {[%clk 0:02:50]}  g5 {[%clk 0:02:26]} 13. h6+ {[%clk 0:02:50]}  Kh8 {[%clk 0:02:26]} 14. O-O-O {[%clk 0:02:48]}  b5 {[%clk 0:02:21]} 15. Nxd4 {[%clk 0:02:45]}  cxd4 {[%clk 0:02:21]} 16. Nxb5 {[%clk 0:02:46]}  Qb6 {[%clk 0:02:16]} 17. Qb4 {[%clk 0:02:43]}  Nc6 {[%clk 0:02:03]} 18. Qxd6 {[%clk 0:02:42]}  Rf7 {[%clk 0:01:48]} 19. e5 {[%clk 0:02:31]}  Bd7 {[%clk 0:01:30]} 20. Bxc6 {[%clk 0:01:31]}  Qxc6 {[%clk 0:01:18]} 21. Qxc6 {[%clk 0:01:30]}  Bxc6 {[%clk 0:01:19]} 22. Nxd4 {[%clk 0:01:30]}  Bxh1 {[%clk 0:01:19]} 23. Rxh1 {[%clk 0:01:30]}  fxe5 {[%clk 0:01:18]} 24. Nxe6 {[%clk 0:01:30]}  Rxf2 {[%clk 0:01:17]} 25. Nxg5 {[%clk 0:01:29]}  Raf8 {[%clk 0:01:11]} 26. Re1 {[%clk 0:01:14]}  Rg2 {[%clk 0:01:07]} 27. Ne4 {[%clk 0:01:10]}  Rh2 {[%clk 0:01:04]} 28. b3 {[%clk 0:00:53]}  Rxh6 {[%clk 0:01:03]} 29. Re2 {[%clk 0:00:48]}  Re6 {[%clk 0:00:58]} 30. Ng5 {[%clk 0:00:40]}  Re7 {[%clk 0:00:58]} 31. c4 {[%clk 0:00:36]}  Kg7 {[%clk 0:00:54]} 32. Kd2 {[%clk 0:00:33]}  Kg6 {[%clk 0:00:54]} 33. Ne4 {[%clk 0:00:33]}  Rd8 {[%clk 0:00:53]} 34. Kc3 {[%clk 0:00:29]}  h5 {[%clk 0:00:51]} 35. Rf2 {[%clk 0:00:28]}  Rf7 {[%clk 0:00:48]} 36. Rd2 {[%clk 0:00:19]}  Rf3 {[%clk 0:00:46]} 37. b4 {[%clk 0:00:19]}  Kf5 {[%clk 0:00:45]} 38. c5 {[%clk 0:00:18]}  Kg4 {[%clk 0:00:31]} 39. c6 {[%clk 0:00:18]}  Rf7 {[%clk 0:00:30]} 40. b5 {[%clk 0:00:18]}  Rd4 {[%clk 0:00:28]} 41. Rh2 {[%clk 0:00:13]}  Rc7 {[%clk 0:00:23]} 42. Rh4+ {[%clk 0:00:11]}  Kf3 {[%clk 0:00:23]} 43. Rxh5 {[%clk 0:00:11]}  a6 {[%clk 0:00:23]} 44. Nc5 {[%clk 0:00:10]}  axb5 {[%clk 0:00:21]} 45. Rxe5 {[%clk 0:00:10]}  Rg4 {[%clk 0:00:19]} 46. Re6 {[%clk 0:00:10]}  Kxg3 {[%clk 0:00:18]} 47. d4 {[%clk 0:00:11]}  Rf4 {[%clk 0:00:16]} 48. Kb4 {[%clk 0:00:11]}  Rxd4+ {[%clk 0:00:16]} 49. Kxb5 {[%clk 0:00:12]}  Rd2 {[%clk 0:00:16]} 50. a4 {[%clk 0:00:12]}  Rb2+ {[%clk 0:00:16]} 51. Kc4 {[%clk 0:00:12]}  Rc8 {[%clk 0:00:15]} 52. Ne4+ {[%clk 0:00:12]}  Kf4 {[%clk 0:00:15]} 53. Kd5 {[%clk 0:00:12]}  Ra2 {[%clk 0:00:14]} 54. Nc5 {[%clk 0:00:12]}  Rd2+ {[%clk 0:00:13]} 55. Kc4 {[%clk 0:00:13]}  Rc2+ {[%clk 0:00:13]} 56. Kd4 {[%clk 0:00:13]}  Rd2+ {[%clk 0:00:13]} 57. Nd3+ {[%clk 0:00:14]}  Kf5 {[%clk 0:00:14]} 58. Rd6 {[%clk 0:00:14]}  Rc2 {[%clk 0:00:13]} 59. Rd5+ {[%clk 0:00:14]}  Ke6 {[%clk 0:00:13]} 60. Rc5 {[%clk 0:00:14]}  Rxc5 {[%clk 0:00:13]} 61. Kxc5 {[%clk 0:00:14]}  Ra8 {[%clk 0:00:13]} 62. Nb2 {[%clk 0:00:13]}  Ke7 {[%clk 0:00:12]} 63. Kb6 {[%clk 0:00:14]}  Kd8 {[%clk 0:00:12]} 64. c7+ {[%clk 0:00:11]}  Kc8 {[%clk 0:00:12]} 65. a5 {[%clk 0:00:12]}  Kd7 {[%clk 0:00:12]} 66. Nc4 {[%clk 0:00:12]}  Kc8 {[%clk 0:00:11]} 67. Nd6+ {[%clk 0:00:12]}  Kd7 {[%clk 0:00:12]} 68. Nb5 {[%clk 0:00:12]}  Rf8 {[%clk 0:00:12]} 69. a6 {[%clk 0:00:13]}  Rf6+ {[%clk 0:00:11]} 70. Kb7 {[%clk 0:00:13]}  Rf8 {[%clk 0:00:11]} 71. a7 {[%clk 0:00:14]}  Rc8 {[%clk 0:00:11]} 72. a8=Q {[%clk 0:00:14]}  Rxa8 {[%clk 0:00:11]} 73. Kxa8 {[%clk 0:00:14]}  Kc8 {[%clk 0:00:12]} 74. Ka7 {[%clk 0:00:14]}  Kd7 {[%clk 0:00:12]} 75. Kb8 {[%clk 0:00:15]}  Kc6 {[%clk 0:00:13]} 76. c8=Q+ {[%clk 0:00:16]}  Kxb5 {[%clk 0:00:14]} 77. Qb7+ {[%clk 0:00:17]}  Kc5 {[%clk 0:00:14]} 78. Kc7 {[%clk 0:00:17]}  Kd4 {[%clk 0:00:15]} 79. Qc6 {[%clk 0:00:18]}  Ke3 {[%clk 0:00:16]} 80. Kd6 {[%clk 0:00:19]}  Kf4 {[%clk 0:00:16]} 81. Qd5 {[%clk 0:00:20]}  Kg4 {[%clk 0:00:17]} 82. Ke5 {[%clk 0:00:21]}  Kh4 {[%clk 0:00:17]} 83. Qe4+ {[%clk 0:00:21]}  Kg3 {[%clk 0:00:18]} 84. Qg6+ {[%clk 0:00:22]}  Kf3 {[%clk 0:00:18]} 85. Qf5+ {[%clk 0:00:22]}  Ke2 {[%clk 0:00:19]} 86. Qh3 {[%clk 0:00:22]}  Kd2 {[%clk 0:00:20]} 87. Kd4 {[%clk 0:00:23]}  Ke2 {[%clk 0:00:20]} 88. Qg2+ {[%clk 0:00:23]}  Ke1 {[%clk 0:00:20]} 89. Kc3 {[%clk 0:00:24]}  Kd1 {[%clk 0:00:21]} 90. Qf1# {[%clk 0:00:25]} 1-0


[Site "https://www.chess.com"]

[Event "Titled Tuesday Blitz June 28 Early 2022"]
[White "Petrova, Irina"]
[Black "Silva, Pedro Gil Ferreira Da"]
[WhiteFideId "14124122"]
[BlackFideId "1946102"]
[WhiteElo "1993"]
[BlackElo "1863"]
[Result "0-1"]
[Round "09"]
[TimeControl "180+1"]
[Date "2022.06.28"]
[WhiteClock "0:00:55"]
[BlackClock "0:01:28"]

1. e4 {[%clk 0:03:00]}  c5 {[%clk 0:02:55]} 2. Nf3 {[%clk 0:03:00]}  d6 {[%clk 0:02:54]} 3. Bb5+ {[%clk 0:03:00]}  Bd7 {[%clk 0:02:52]} 4. Bxd7+ {[%clk 0:03:00]}  Qxd7 {[%clk 0:02:53]} 5. O-O {[%clk 0:02:59]}  Nc6 {[%clk 0:02:53]} 6. c3 {[%clk 0:02:59]}  Nf6 {[%clk 0:02:52]} 7. Re1 {[%clk 0:02:59]}  e6 {[%clk 0:02:53]} 8. d4 {[%clk 0:02:59]}  cxd4 {[%clk 0:02:49]} 9. cxd4 {[%clk 0:03:00]}  d5 {[%clk 0:02:50]} 10. e5 {[%clk 0:03:00]}  Ne4 {[%clk 0:02:50]} 11. Nbd2 {[%clk 0:03:01]}  Nxd2 {[%clk 0:02:50]} 12. Bxd2 {[%clk 0:03:02]}  Be7 {[%clk 0:02:50]} 13. Rc1 {[%clk 0:03:00]}  O-O {[%clk 0:02:49]} 14. a3 {[%clk 0:03:00]}  Rfc8 {[%clk 0:02:48]} 15. Rc3 {[%clk 0:03:00]}  b5 {[%clk 0:02:37]} 16. h4 {[%clk 0:02:57]}  a5 {[%clk 0:02:31]} 17. h5 {[%clk 0:02:56]}  b4 {[%clk 0:02:30]} 18. Rd3 {[%clk 0:02:55]}  h6 {[%clk 0:02:22]} 19. Nh2 {[%clk 0:02:53]}  bxa3 {[%clk 0:02:21]} 20. bxa3 {[%clk 0:02:54]}  Rab8 {[%clk 0:02:18]} 21. Qg4 {[%clk 0:02:53]}  Kh8 {[%clk 0:02:17]} 22. Rg3 {[%clk 0:02:52]}  Rg8 {[%clk 0:02:14]} 23. Qf4 {[%clk 0:02:31]}  Rb2 {[%clk 0:01:40]} 24. Ng4 {[%clk 0:01:59]}  Bg5 {[%clk 0:01:38]} 25. Qf3 {[%clk 0:01:43]}  Rxd2 {[%clk 0:01:38]} 26. Qc3 {[%clk 0:01:34]}  Nxd4 {[%clk 0:01:34]} 27. Qxa5 {[%clk 0:01:02]}  Ne2+ {[%clk 0:01:29]} 28. Rxe2 {[%clk 0:01:01]}  Rxe2 {[%clk 0:01:30]} 29. Ne3 {[%clk 0:00:56]}  Bxe3 {[%clk 0:01:29]} 30. fxe3 {[%clk 0:00:55]}  d4 {[%clk 0:01:28]} 0-1


[Site "https://www.chess.com"]

[Event "Titled Tuesday Blitz June 28 Early 2022"]
[White "Plazuelo Pascual, Juan"]
[Black "Jaskolka, Tomasz"]
[WhiteFideId "32059566"]
[BlackFideId "1170791"]
[WhiteElo "2359"]
[BlackElo "2073"]
[Result "1-0"]
[Round "09"]
[TimeControl "180+1"]
[Date "2022.06.28"]
[WhiteClock "0:00:11"]
[BlackClock "0:01:07"]

1. e4 {[%clk 0:03:00]}  c5 {[%clk 0:02:59]} 2. Nf3 {[%clk 0:03:00]}  e6 {[%clk 0:03:00]} 3. c3 {[%clk 0:03:00]}  Nf6 {[%clk 0:03:00]} 4. e5 {[%clk 0:02:59]}  Nd5 {[%clk 0:03:01]} 5. d4 {[%clk 0:03:00]}  cxd4 {[%clk 0:03:01]} 6. cxd4 {[%clk 0:03:00]}  d6 {[%clk 0:03:00]} 7. Bc4 {[%clk 0:02:52]}  Be7 {[%clk 0:03:00]} 8. O-O {[%clk 0:02:51]}  O-O {[%clk 0:03:01]} 9. Qe2 {[%clk 0:02:52]}  b6 {[%clk 0:03:01]} 10. Rd1 {[%clk 0:02:43]}  Bb7 {[%clk 0:02:59]} 11. Bxd5 {[%clk 0:02:44]}  exd5 {[%clk 0:03:00]} 12. Bf4 {[%clk 0:02:40]}  dxe5 {[%clk 0:02:54]} 13. Nxe5 {[%clk 0:02:39]}  Nd7 {[%clk 0:02:49]} 14. Nc3 {[%clk 0:02:37]}  Nf6 {[%clk 0:02:49]} 15. h3 {[%clk 0:02:33]}  h6 {[%clk 0:02:48]} 16. Rac1 {[%clk 0:02:31]}  Rc8 {[%clk 0:02:20]} 17. Re1 {[%clk 0:02:29]}  Ne4 {[%clk 0:02:16]} 18. Qd3 {[%clk 0:02:17]}  Bb4 {[%clk 0:02:10]} 19. a3 {[%clk 0:02:11]}  Bxc3 {[%clk 0:02:02]} 20. bxc3 {[%clk 0:02:10]}  f6 {[%clk 0:02:00]} 21. Ng4 {[%clk 0:01:53]}  Qd7 {[%clk 0:01:50]} 22. Rc2 {[%clk 0:01:39]}  Rfe8 {[%clk 0:01:43]} 23. Rec1 {[%clk 0:01:13]}  Qa4 {[%clk 0:01:36]} 24. f3 {[%clk 0:00:53]}  Ba6 {[%clk 0:01:36]} 25. Qd1 {[%clk 0:00:40]}  Nxc3 {[%clk 0:01:36]} 26. Qd2 {[%clk 0:00:16]}  Ne2+ {[%clk 0:01:28]} 27. Kh2 {[%clk 0:00:16]}  Nxc1 {[%clk 0:01:27]} 28. Rxc1 {[%clk 0:00:12]}  Rxc1 {[%clk 0:01:27]} 29. Qxc1 {[%clk 0:00:13]}  Qxa3 {[%clk 0:01:07]} 30. Qxa3 {[%clk 0:00:11]} 1-0


[Site "https://www.chess.com"]

[Event "Titled Tuesday Blitz June 28 Early 2022"]
[White "Pourkashiyan, Atousa"]
[Black "Ghazarian, Kirk"]
[WhiteFideId "12502014"]
[BlackFideId "30908604"]
[WhiteElo "2247"]
[BlackElo "2003"]
[Result "0-1"]
[Round "09"]
[TimeControl "180+1"]
[Date "2022.06.28"]
[WhiteClock "0:00:10"]
[BlackClock "0:00:12"]

1. e4 {[%clk 0:02:51]}  c5 {[%clk 0:02:59]} 2. Nf3 {[%clk 0:02:50]}  Nc6 {[%clk 0:03:00]} 3. d4 {[%clk 0:02:49]}  cxd4 {[%clk 0:03:01]} 4. Nxd4 {[%clk 0:02:49]}  Nf6 {[%clk 0:03:01]} 5. Nc3 {[%clk 0:02:49]}  d6 {[%clk 0:03:02]} 6. Bc4 {[%clk 0:02:48]}  e6 {[%clk 0:03:02]} 7. O-O {[%clk 0:02:45]}  Be7 {[%clk 0:03:02]} 8. Be3 {[%clk 0:02:38]}  O-O {[%clk 0:03:01]} 9. f4 {[%clk 0:02:37]}  Nxd4 {[%clk 0:02:57]} 10. Bxd4 {[%clk 0:02:32]}  b6 {[%clk 0:02:56]} 11. e5 {[%clk 0:02:24]}  Ne8 {[%clk 0:02:52]} 12. Qf3 {[%clk 0:02:12]}  Rb8 {[%clk 0:02:50]} 13. Bd3 {[%clk 0:02:08]}  Bb7 {[%clk 0:02:42]} 14. Qh3 {[%clk 0:01:56]}  g6 {[%clk 0:02:36]} 15. Ne4 {[%clk 0:01:28]}  Bxe4 {[%clk 0:02:29]} 16. Bxe4 {[%clk 0:01:29]}  d5 {[%clk 0:02:28]} 17. Bd3 {[%clk 0:01:28]}  Ng7 {[%clk 0:02:28]} 18. Rad1 {[%clk 0:01:25]}  Bc5 {[%clk 0:02:28]} 19. c3 {[%clk 0:01:17]}  Qe7 {[%clk 0:02:28]} 20. Qh6 {[%clk 0:01:02]}  Bxd4+ {[%clk 0:02:17]} 21. cxd4 {[%clk 0:01:03]}  Qb4 {[%clk 0:02:18]} 22. Kh1 {[%clk 0:00:58]}  Rfc8 {[%clk 0:02:09]} 23. Rf3 {[%clk 0:00:55]}  Qxb2 {[%clk 0:01:46]} 24. Rh3 {[%clk 0:00:46]}  Rc1 {[%clk 0:01:26]} 25. Qxh7+ {[%clk 0:00:44]}  Kf8 {[%clk 0:01:26]} 26. Rf1 {[%clk 0:00:29]}  Rxf1+ {[%clk 0:01:11]} 27. Bxf1 {[%clk 0:00:30]}  Ne8 {[%clk 0:00:20]} 28. Qh8+ {[%clk 0:00:18]}  Ke7 {[%clk 0:00:20]} 29. Qh4+ {[%clk 0:00:18]}  Kd7 {[%clk 0:00:17]} 30. Qh7 {[%clk 0:00:18]}  Ke7 {[%clk 0:00:16]} 31. Qh4+ {[%clk 0:00:14]}  Kd7 {[%clk 0:00:14]} 32. Rf3 {[%clk 0:00:13]}  Qxd4 {[%clk 0:00:09]} 33. Bb5+ {[%clk 0:00:12]}  Kc8 {[%clk 0:00:04]} 34. Qe1 {[%clk 0:00:11]}  Nc7 {[%clk 0:00:03]} 35. Bf1 {[%clk 0:00:10]}  Kb7 {[%clk 0:00:03]} 36. h3 {[%clk 0:00:08]}  Rc8 {[%clk 0:00:04]} 37. Qe2 {[%clk 0:00:08]}  Qc4 {[%clk 0:00:02]} 38. Rd3 {[%clk 0:00:08]}  Qc5 {[%clk 0:00:02]} 39. Qf3 {[%clk 0:00:08]}  Nb5 {[%clk 0:00:03]} 40. Rd2 {[%clk 0:00:08]}  Qc1 {[%clk 0:00:03]} 41. Rf2 {[%clk 0:00:07]}  Nc3 {[%clk 0:00:03]} 42. Kh2 {[%clk 0:00:07]}  Ne4 {[%clk 0:00:04]} 43. Re2 {[%clk 0:00:06]}  Qc3 {[%clk 0:00:04]} 44. Re3 {[%clk 0:00:06]}  Qc5 {[%clk 0:00:04]} 45. Qe2 {[%clk 0:00:07]}  Nc3 {[%clk 0:00:05]} 46. Qa6+ {[%clk 0:00:07]}  Kb8 {[%clk 0:00:05]} 47. Rd3 {[%clk 0:00:07]}  Ne4 {[%clk 0:00:05]} 48. Rf3 {[%clk 0:00:07]}  Qc6 {[%clk 0:00:06]} 49. Qa3 {[%clk 0:00:06]}  Nd2 {[%clk 0:00:06]} 50. Rf2 {[%clk 0:00:06]}  Nxf1+ {[%clk 0:00:06]} 51. Rxf1 {[%clk 0:00:06]}  Qc4 {[%clk 0:00:07]} 52. Rb1 {[%clk 0:00:06]}  Qxf4+ {[%clk 0:00:06]} 53. Kh1 {[%clk 0:00:06]}  Qxe5 {[%clk 0:00:07]} 54. Qb3 {[%clk 0:00:05]}  Qc7 {[%clk 0:00:08]} 55. Qb5 {[%clk 0:00:05]}  Qc6 {[%clk 0:00:08]} 56. Qe2 {[%clk 0:00:05]}  Rc7 {[%clk 0:00:08]} 57. Qf3 {[%clk 0:00:05]}  Kb7 {[%clk 0:00:08]} 58. Qf4 {[%clk 0:00:06]}  Qc4 {[%clk 0:00:08]} 59. Rf1 {[%clk 0:00:07]}  Qxf4 {[%clk 0:00:08]} 60. Rxf4 {[%clk 0:00:07]}  f5 {[%clk 0:00:08]} 61. h4 {[%clk 0:00:07]}  Rc4 {[%clk 0:00:08]} 62. Rf2 {[%clk 0:00:06]}  Rxh4+ {[%clk 0:00:09]} 63. Kg1 {[%clk 0:00:07]}  Ra4 {[%clk 0:00:09]} 64. Rc2 {[%clk 0:00:08]}  g5 {[%clk 0:00:10]} 65. g3 {[%clk 0:00:08]}  g4 {[%clk 0:00:10]} 66. Kg2 {[%clk 0:00:08]}  Rc4 {[%clk 0:00:11]} 67. Rf2 {[%clk 0:00:09]}  Re4 {[%clk 0:00:11]} 68. Re2 {[%clk 0:00:09]}  Rxe2+ {[%clk 0:00:11]} 69. Kf1 {[%clk 0:00:10]}  Rxa2 {[%clk 0:00:12]} 0-1


[Site "https://www.chess.com"]

[Event "Titled Tuesday Blitz June 28 Early 2022"]
[White "Rios Escobar, Adan"]
[Black "Ouellet, Maili-Jade"]
[WhiteFideId "3403645"]
[BlackFideId "2620472"]
[WhiteElo "2454"]
[BlackElo "1899"]
[Result "0-1"]
[Round "09"]
[TimeControl "180+1"]
[Date "2022.06.28"]
[WhiteClock "0:00:01"]
[BlackClock "0:00:05"]

1. d4 {[%clk 0:02:50]}  d5 {[%clk 0:02:57]} 2. Nf3 {[%clk 0:02:50]}  Nf6 {[%clk 0:02:57]} 3. g3 {[%clk 0:02:50]}  e6 {[%clk 0:02:57]} 4. c4 {[%clk 0:02:48]}  Be7 {[%clk 0:02:57]} 5. Bg2 {[%clk 0:02:48]}  O-O {[%clk 0:02:58]} 6. O-O {[%clk 0:02:49]}  dxc4 {[%clk 0:02:58]} 7. Qc2 {[%clk 0:02:48]}  b5 {[%clk 0:02:59]} 8. a4 {[%clk 0:02:47]}  b4 {[%clk 0:02:59]} 9. Bg5 {[%clk 0:02:46]}  Ba6 {[%clk 0:02:43]} 10. Bxf6 {[%clk 0:02:39]}  Bxf6 {[%clk 0:02:42]} 11. Ng5 {[%clk 0:02:38]}  Bxg5 {[%clk 0:02:38]} 12. Bxa8 {[%clk 0:02:38]}  c6 {[%clk 0:02:36]} 13. e3 {[%clk 0:02:33]}  Qd5 {[%clk 0:02:23]} 14. e4 {[%clk 0:01:43]}  Qxd4 {[%clk 0:02:16]} 15. Rd1 {[%clk 0:01:42]}  Qc5 {[%clk 0:02:00]} 16. Nd2 {[%clk 0:01:40]}  Bf6 {[%clk 0:01:37]} 17. Nf3 {[%clk 0:01:20]}  c3 {[%clk 0:01:25]} 18. bxc3 {[%clk 0:01:18]}  Bxc3 {[%clk 0:01:24]} 19. Rac1 {[%clk 0:01:17]}  Qe7 {[%clk 0:01:13]} 20. Nd4 {[%clk 0:01:06]}  Qc7 {[%clk 0:01:00]} 21. e5 {[%clk 0:00:52]}  Bc4 {[%clk 0:00:44]} 22. Ne2 {[%clk 0:00:21]}  Bxe2 {[%clk 0:00:36]} 23. Qxe2 {[%clk 0:00:21]}  Nd7 {[%clk 0:00:35]} 24. f4 {[%clk 0:00:11]}  Rxa8 {[%clk 0:00:34]} 25. Qd3 {[%clk 0:00:12]}  Nb6 {[%clk 0:00:31]} 26. Kg2 {[%clk 0:00:08]}  Nd5 {[%clk 0:00:31]} 27. Qc4 {[%clk 0:00:06]}  g6 {[%clk 0:00:30]} 28. Rd3 {[%clk 0:00:06]}  Qb6 {[%clk 0:00:28]} 29. Kf3 {[%clk 0:00:05]}  h5 {[%clk 0:00:27]} 30. h3 {[%clk 0:00:05]}  Kg7 {[%clk 0:00:27]} 31. g4 {[%clk 0:00:06]}  hxg4+ {[%clk 0:00:27]} 32. hxg4 {[%clk 0:00:07]}  Rh8 {[%clk 0:00:26]} 33. Kg3 {[%clk 0:00:07]}  Qd8 {[%clk 0:00:19]} 34. Kg2 {[%clk 0:00:05]}  Qh4 {[%clk 0:00:18]} 35. Qe4 {[%clk 0:00:04]}  Qh2+ {[%clk 0:00:13]} 36. Kf1 {[%clk 0:00:02]}  Nxf4 {[%clk 0:00:10]} 37. Qf3 {[%clk 0:00:01]}  Rh3 {[%clk 0:00:05]} 0-1


[Site "https://www.chess.com"]

[Event "Titled Tuesday Blitz June 28 Early 2022"]
[White "Sadubayev, Airat"]
[Black "Vianello, Enrico"]
[WhiteFideId "13713264"]
[BlackFideId "810738"]
[WhiteElo "2230"]
[BlackElo "2232"]
[Result "0-1"]
[Round "09"]
[TimeControl "180+1"]
[Date "2022.06.28"]
[WhiteClock "0:00:01"]
[BlackClock "0:00:15"]

1. d4 {[%clk 0:03:00]}  d5 {[%clk 0:02:59]} 2. c4 {[%clk 0:02:58]}  e6 {[%clk 0:02:59]} 3. Nc3 {[%clk 0:02:57]}  c6 {[%clk 0:02:58]} 4. Nf3 {[%clk 0:02:53]}  dxc4 {[%clk 0:02:56]} 5. a4 {[%clk 0:02:35]}  Bb4 {[%clk 0:02:54]} 6. Bf4 {[%clk 0:02:19]}  b5 {[%clk 0:02:44]} 7. axb5 {[%clk 0:02:12]}  cxb5 {[%clk 0:02:43]} 8. e3 {[%clk 0:02:07]}  Bb7 {[%clk 0:02:38]} 9. Be2 {[%clk 0:02:04]}  a6 {[%clk 0:02:36]} 10. O-O {[%clk 0:02:01]}  Nf6 {[%clk 0:02:35]} 11. Ne5 {[%clk 0:01:46]}  Nbd7 {[%clk 0:02:31]} 12. Bf3 {[%clk 0:01:43]}  Bxf3 {[%clk 0:02:25]} 13. Qxf3 {[%clk 0:01:39]}  O-O {[%clk 0:02:17]} 14. Nc6 {[%clk 0:01:31]}  Qb6 {[%clk 0:02:09]} 15. Nxb4 {[%clk 0:01:30]}  a5 {[%clk 0:02:07]} 16. Nc6 {[%clk 0:01:22]}  b4 {[%clk 0:01:58]} 17. Na4 {[%clk 0:01:18]}  Qb5 {[%clk 0:01:56]} 18. Ne5 {[%clk 0:01:11]}  Rfd8 {[%clk 0:01:51]} 19. Rfc1 {[%clk 0:01:02]}  Rac8 {[%clk 0:01:49]} 20. Qe2 {[%clk 0:00:47]}  Nxe5 {[%clk 0:01:49]} 21. Bxe5 {[%clk 0:00:45]}  Nd5 {[%clk 0:01:50]} 22. Nc5 {[%clk 0:00:43]}  Nb6 {[%clk 0:01:38]} 23. Nb7 {[%clk 0:00:37]}  Rd5 {[%clk 0:01:27]} 24. Nd6 {[%clk 0:00:30]}  Rxd6 {[%clk 0:01:18]} 25. Bxd6 {[%clk 0:00:30]}  Na4 {[%clk 0:00:57]} 26. Bc5 {[%clk 0:00:21]}  Nxc5 {[%clk 0:00:51]} 27. dxc5 {[%clk 0:00:21]}  Rxc5 {[%clk 0:00:52]} 28. h3 {[%clk 0:00:19]}  h6 {[%clk 0:00:50]} 29. Qd2 {[%clk 0:00:17]}  a4 {[%clk 0:00:44]} 30. Qd8+ {[%clk 0:00:16]}  Kh7 {[%clk 0:00:43]} 31. Qa8 {[%clk 0:00:16]}  c3 {[%clk 0:00:37]} 32. bxc3 {[%clk 0:00:11]}  b3 {[%clk 0:00:29]} 33. Qxa4 {[%clk 0:00:10]}  b2 {[%clk 0:00:27]} 34. Qxb5 {[%clk 0:00:04]}  bxc1=Q+ {[%clk 0:00:27]} 35. Rxc1 {[%clk 0:00:03]}  Rxb5 {[%clk 0:00:27]} 36. Kf1 {[%clk 0:00:03]}  Kg6 {[%clk 0:00:25]} 37. c4 {[%clk 0:00:03]}  Rc5 {[%clk 0:00:23]} 38. Ke2 {[%clk 0:00:03]}  Kf5 {[%clk 0:00:23]} 39. Kd3 {[%clk 0:00:04]}  Ke5 {[%clk 0:00:24]} 40. f3 {[%clk 0:00:04]}  f5 {[%clk 0:00:23]} 41. f4+ {[%clk 0:00:04]}  Kd6 {[%clk 0:00:23]} 42. Kd4 {[%clk 0:00:04]}  Kc6 {[%clk 0:00:20]} 43. Ra1 {[%clk 0:00:05]}  Kb6 {[%clk 0:00:19]} 44. Rb1+ {[%clk 0:00:03]}  Kc6 {[%clk 0:00:19]} 45. Rb8 {[%clk 0:00:03]}  Ra5 {[%clk 0:00:18]} 46. Rc8+ {[%clk 0:00:02]}  Kd7 {[%clk 0:00:18]} 47. Rg8 {[%clk 0:00:03]}  g5 {[%clk 0:00:16]} 48. Rg7+ {[%clk 0:00:03]}  Kd6 {[%clk 0:00:16]} 49. fxg5 {[%clk 0:00:04]}  hxg5 {[%clk 0:00:16]} 50. Rxg5 {[%clk 0:00:04]}  Ra1 {[%clk 0:00:17]} 51. Rg6 {[%clk 0:00:03]}  Rd1+ {[%clk 0:00:16]} 52. Kc3 {[%clk 0:00:02]}  Rc1+ {[%clk 0:00:17]} 53. Kb3 {[%clk 0:00:02]}  Rb1+ {[%clk 0:00:17]} 54. Kc2 {[%clk 0:00:02]}  Re1 {[%clk 0:00:15]} 55. Kd3 {[%clk 0:00:01]}  Rd1+ {[%clk 0:00:15]} 56. Ke2 {[%clk 0:00:01]}  Rc1 {[%clk 0:00:16]} 57. h4 {[%clk 0:00:01]}  Rxc4 {[%clk 0:00:15]} 58. h5 {[%clk 0:00:01]}  Rh4 {[%clk 0:00:15]} 0-1


[Site "https://www.chess.com"]

[Event "Titled Tuesday Blitz June 28 Early 2022"]
[White "Sanchez, Robert"]
[Black "Gubajdullin, Alexei"]
[WhiteFideId "2034360"]
[BlackFideId "4141202"]
[WhiteElo "2084"]
[BlackElo "2280"]
[Result "0-1"]
[Round "09"]
[TimeControl "180+1"]
[Date "2022.06.28"]
[WhiteClock "0:00:57"]
[BlackClock "0:01:02"]

1. e4 {[%clk 0:03:00]}  g6 {[%clk 0:03:00]} 2. d4 {[%clk 0:03:00]}  d6 {[%clk 0:03:00]} 3. Nc3 {[%clk 0:03:01]}  c6 {[%clk 0:03:00]} 4. Be3 {[%clk 0:03:00]}  b5 {[%clk 0:02:59]} 5. f3 {[%clk 0:03:01]}  Bg7 {[%clk 0:02:56]} 6. Qd2 {[%clk 0:03:01]}  b4 {[%clk 0:02:51]} 7. Nce2 {[%clk 0:03:01]}  a5 {[%clk 0:02:50]} 8. O-O-O {[%clk 0:03:00]}  Nf6 {[%clk 0:02:48]} 9. Kb1 {[%clk 0:03:00]}  O-O {[%clk 0:02:48]} 10. g4 {[%clk 0:03:01]}  h5 {[%clk 0:02:42]} 11. Bh6 {[%clk 0:02:37]}  hxg4 {[%clk 0:02:40]} 12. Bxg7 {[%clk 0:02:37]}  Kxg7 {[%clk 0:02:40]} 13. e5 {[%clk 0:02:36]}  dxe5 {[%clk 0:02:39]} 14. dxe5 {[%clk 0:02:37]}  Nd5 {[%clk 0:02:35]} 15. fxg4 {[%clk 0:02:28]}  Bxg4 {[%clk 0:02:34]} 16. Bh3 {[%clk 0:02:19]}  Bxh3 {[%clk 0:02:28]} 17. Nxh3 {[%clk 0:02:19]}  Qb6 {[%clk 0:02:27]} 18. e6 {[%clk 0:02:15]}  Qe3 {[%clk 0:02:20]} 19. Nhf4 {[%clk 0:01:58]}  Qxd2 {[%clk 0:02:15]} 20. Rxd2 {[%clk 0:01:59]}  Nxf4 {[%clk 0:02:14]} 21. Nxf4 {[%clk 0:02:00]}  Na6 {[%clk 0:02:05]} 22. Rg1 {[%clk 0:01:56]}  Rad8 {[%clk 0:01:52]} 23. Rdg2 {[%clk 0:01:54]}  Rd4 {[%clk 0:01:52]} 24. Rg4 {[%clk 0:01:45]}  Rfd8 {[%clk 0:01:52]} 25. b3 {[%clk 0:01:35]}  Rd1+ {[%clk 0:01:51]} 26. Kb2 {[%clk 0:01:29]}  Rxg1 {[%clk 0:01:48]} 27. Rxg1 {[%clk 0:01:29]}  Rd4 {[%clk 0:01:47]} 28. Rg4 {[%clk 0:01:29]}  c5 {[%clk 0:01:32]} 29. h3 {[%clk 0:01:27]}  Nc7 {[%clk 0:01:27]} 30. exf7 {[%clk 0:01:27]}  Kxf7 {[%clk 0:01:27]} 31. Nxg6 {[%clk 0:01:25]}  Rxg4 {[%clk 0:01:24]} 32. Ne5+ {[%clk 0:01:25]}  Kf6 {[%clk 0:01:22]} 33. Nxg4+ {[%clk 0:01:25]}  Kf5 {[%clk 0:01:22]} 34. c3 {[%clk 0:01:21]}  e5 {[%clk 0:01:19]} 35. cxb4 {[%clk 0:01:20]}  cxb4 {[%clk 0:01:17]} 36. Ne3+ {[%clk 0:01:13]}  Kf4 {[%clk 0:01:15]} 37. Nc4 {[%clk 0:01:12]}  e4 {[%clk 0:01:15]} 38. Kc2 {[%clk 0:01:13]}  Ne6 {[%clk 0:01:07]} 39. Kd2 {[%clk 0:01:06]}  Nd4 {[%clk 0:01:05]} 40. Nxa5 {[%clk 0:01:04]}  e3+ {[%clk 0:01:05]} 41. Ke1 {[%clk 0:01:04]}  Kf3 {[%clk 0:01:03]} 42. Nc4 {[%clk 0:00:56]}  Nc2+ {[%clk 0:01:03]} 43. Kd1 {[%clk 0:00:57]}  e2+ {[%clk 0:01:02]} 44. Kxc2 {[%clk 0:00:57]}  e1=Q {[%clk 0:01:02]} 0-1


[Site "https://www.chess.com"]